[Event "BSV-SCK IM 2022"]
[Site "Berlin"]
[Date "2022.04.12"]
[Round "6.5"]
[White "Mirzoev, Emil"]
[Black "Glantz, Robert"]
[Result "1-0"]
[ECO "A65"]
[WhiteElo "2460"]
[BlackElo "2318"]
[Annotator "RC"]
[PlyCount "73"]
[EventDate "2022.04.08"]
[EventType "tourn"]
[EventCountry "GER"]
[SourceTitle "playchess.com"]
[Source "ChessBase"]
[SourceQuality "1"]
[TimeControl "5400+30"]

1. d4 {[%emt 0:01:32]} Nf6 {[%emt 0:00:45]} 2. c4 {[%emt 0:03:55]} g6 {[%emt 0:00:21]} 3. Nc3 {[%emt 0:00:06]} Bg7 {[%emt 0:00:22]} 4. e4 {[%emt 0:00:04]} d6 {[%emt 0:00:19]} 5. Nge2 {[%emt 0:02:36]} O-O {[%emt 0:00:58]} 6. Ng3 {[%emt 0:01:15]} a6 {[%emt 0:18:13]} 7. Be2 {[%emt 0:02:08]} c5 {[%emt 0:04:03]} 8. d5 {[%emt 0:03:16]} e6 {[%emt 0:05:50]} 9. a4 {[%emt 0:02:15]} exd5 {[%emt 0:01:11]} 10. cxd5 {[%emt 0:02:05]} h5 {[%emt 0:04:33]} 11. Bg5 {[%emt 0:00:12]} Qc7 {[%emt 0:02:04]} 12. h3 {[%emt 0:04:50]} Re8 {[%emt 0:01:16]} 13. Qc2 {[%emt 0:21:58]} Nbd7 {[%emt 0:03:06]} 14. Nf1 {[%emt 0:08:28]} c4 {[%emt 0:08:44]} 15. Nd2 {[%emt 0:01:56]} Nc5 {[%emt 0:10:33]} 16. O-O {[%emt 0:01:12]} Bd7 {[%emt 0:05:57]} 17. Bxc4 {[%emt 0:04:38]} Nxa4 {[%emt 0:10:24]} 18. Nxa4 {[%emt 0:01:02]} b5 {[%emt 0:01:42]} 19. Bd3 {[%emt 0:00:27]} Qxc2 {[%emt 0:00:14]} 20. Bxc2 {[%emt 0:00:02]} bxa4 {[%emt 0:00:12]} 21. Bxa4 {[%emt 0:00:38]} Bxa4 {[%emt 0:03:09]} 22. Rxa4 {[%emt 0:00:54]} Nd7 {[%emt 0:01:14]} 23. Be3 {[%emt 0:04:50]} Ne5 {[%emt 0:07:50]} 24. Rfa1 {[%emt 0:03:45]} Rab8 {[%emt 0:01:55]} 25. Rxa6 {[%emt 0:05:51]} Rxb2 {[%emt 0:00:18]} 26. R1a2 {[%emt 0:01:58]} Rxa2 {[%emt 0:01:35]} 27. Rxa2 {[%emt 0:00:01]} f5 {[%emt 0:03:29]} 28. Ra6 {[%emt 0:01:48]} Nd3 {[%emt 0:02:30]} 29. Rxd6 {[%emt 0:01:57]} f4 {[%emt 0:01:28]} 30. Bb6 {[%emt 0:00:04]} Ra8 {[%emt 0:00:34]} 31. Rd8+ {[%emt 0:03:09]} Rxd8 {[%emt 0:00:12]} 32. Bxd8 {[%emt 0:00:00]} Bd4 {[%emt 0:00:36]} 33. Bh4 {[%emt 0:00:05]} Kf7 {[%emt 0:00:45]} 34. Kf1 {[%emt 0:00:32]} Ne5 {[%emt 0:00:32]} 35. Ke2 {[%emt 0:01:42]} Nd7 {[%emt 0:00:27]} 36. Bg5 {[%emt 0:00:37]} Be5 {[%emt 0:00:33]} 37. Kf3 {[%emt 0:00:16]} 1-0

[Event "BSV-SCK IM 2022"]
[Site "Berlin"]
[Date "2022.04.13"]
[Round "7.1"]
[White "Glantz, Robert"]
[Black "Vogel, Constantin"]
[Result "1-0"]
[ECO "A46"]
[WhiteElo "2318"]
[BlackElo "2209"]
[Annotator "TA"]
[PlyCount "57"]
[EventDate "2022.04.08"]
[EventType "tourn"]
[EventCountry "GER"]
[SourceTitle "playchess.com"]
[Source "ChessBase"]
[SourceQuality "1"]
[TimeControl "5400+30"]

{[%evp 9,57,11,0,0,0,0,-2,-6,0,-7,11,0,7,8,64,23,38,31,33,51,54,49,48,33,43,41,76,24,30,18,122,99,208,196,191,169,525,542,620,610,958,951,1144,1014,1038,1022,1111,1081,963,660]} 1. d4 {[%emt 0:03:10]} Nf6 {[%emt 0:00:12]} 2. Nf3 {[%emt 0:00:32]} e6 {[%emt 0:00:06]} 3. Bf4 {[%emt 0:01:07]} c5 {[%emt 0:00:27]} 4. e3 {[%emt 0:01:13]} Qb6 {[%emt 0:01:59]} 5. Nc3 {[%emt 0:01:03]} a6 {[%emt 0:00:24]} 6. a3 {[%emt 0:01:33] A46: 1 d4 Nf6 2 Nf3 e6: Torre, London and Colle Systems.} d5 {[%emt 0:06:21] [#] 6...cxd4 is vanishing.} 7. h3 $146 {[%emt 0:02:04]} ({Predecessor:} 7. Be2 cxd4 8. exd4 Bd7 9. O-O Qxb2 10. Qd2 Qb6 11. Rfb1 Qa7 12. Rb3 Be7 13. Rab1 {0-1 (44) Bortnyk,O (2604)-Sarana,A (2675) Chess.com INT 2022}) 7... Bd7 {[%emt 0:00:59]} 8. Rb1 {[%emt 0:04:43] The position is equal.} Nc6 {[%emt 0:01:14]} 9. dxc5 {[%emt 0:03:19]} Qxc5 {[%emt 0:03:28]} 10. Bd3 {[%emt 0:04:02]} Bd6 {[%emt 0:02:47]} 11. O-O {[%emt 0:14:53] Black should prevent Na4.} e5 {[%emt 0:11:51]} (11... Bxf4 $11 12. exf4 O-O) 12. Bh2 {[%emt 0:20:09][%cal Ob2b4]} O-O {[%emt 0:04:54]} 13. e4 {[%emt 0:03:49]} d4 {[%emt 0:02:36] [#]} 14. b4 $1 {[%emt 0:01:10]} Nxb4 {[%emt 0:14:06]} (14... Qb6 15. Nd5) 15. axb4 {[%emt 0:00:15]} Qxc3 {[%emt 0:00:04]} 16. Bxe5 {[%emt 0:03:34]} Bxe5 {[%emt 0:01:30]} 17. Nxe5 {[%emt 0:00:07]} Ba4 {[%emt 0:03:43] [#]} 18. f4 {[%emt 0:04:53]} ({White should try} 18. Nc4 $1 $16 {[%cal Rc4b6]}) 18... Rac8 {[%emt 0:02:36][%cal Ra4c2]} 19. Rf2 {[%emt 0:00:54]} Nd7 {[%emt 0:02:45] [#]} (19... Qc7 $11) 20. Nf3 $1 $16 {[%emt 0:06:11]} Rfd8 {[%emt 0:01:58]} (20... g6 $16 {was necessary.}) 21. e5 $18 {[%emt 0:02:13]} Nf8 {[%emt 0:02:14]} 22. Ng5 {[%emt 0:04:47] Black must now prevent Qh5.} Rc6 $2 {[%emt 0:05:59]} (22... Qc7 {is a better chance.} 23. Qh5 h6) 23. Qh5 {[%emt 0:06:43][%csl LRf7,LRh7] White is clearly winning.} g6 {[%emt 0:02:02]} 24. Qh4 {[%emt 0:00:19] Ne4 is the strong threat.} Rdc8 {[%emt 0:07:18]} 25. f5 {[%emt 0:00:40]} R8c7 {[%emt 0:03:18]} 26. fxg6 {[%emt 0:01:40]} hxg6 {[%emt 0:00:51]} 27. Ne4 {[%emt 0:00:59]} Qa3 {[%emt 0:00:17]} 28. Nf6+ {[%emt 0:00:38]} Rxf6 {[%emt 0:02:24]} 29. Qxf6 {[%emt 0:08:20] Weighted Error Value: White=0.06 (flawless) /Black=0.48} 1-0

[Event "BSV-SCK IM 2022"]
[Site "Berlin"]
[Date "2022.04.13"]
[Round "7.2"]
[White "Eilenberg, Jonas"]
[Black "Mirzoev, Emil"]
[Result "0-1"]
[ECO "E62"]
[WhiteElo "2135"]
[BlackElo "2460"]
[Annotator "TA"]
[PlyCount "86"]
[EventDate "2022.04.08"]
[EventType "tourn"]
[EventCountry "GER"]
[SourceTitle "playchess.com"]
[Source "ChessBase"]
[SourceQuality "1"]
[TimeControl "5400+30"]

{[%evp 16,86,27,-39,-41,-39,-22,-29,-25,-45,-20,-44,-51,-81,-71,-96,-45,-54,-31,-41,-22,-125,-50,-100,-104,-122,-131,-137,-132,-147,-137,-142,-142,-135,-133,-143,-139,-140,-141,-277,-276,-266,-283,-247,-223,-290,-197,-192,-195,-343,-343,-410,-317,-338,-337,-337,-337,-323,-304,-316,-317,-461,-461,-462,-475,-583,-600,-788,-554,-29980,-29981,-5247,-3603]} 1. d4 {[%emt 0:00:03]} Nf6 {[%emt 0:00:04]} 2. Nf3 {[%emt 0:00:06]} d6 {[%emt 0:00:04]} 3. c4 {[%emt 0:00:07]} g6 {[%emt 0:00:06]} 4. Nc3 {[%emt 0:00:06]} Bf5 {[%emt 0:00:06]} 5. g3 {[%emt 0:01:43]} Bg7 {[%emt 0:00:09]} 6. Bg2 {[%emt 0:00:09]} O-O {[%emt 0:00:06]} 7. O-O {[%emt 0:04:09]} Nc6 {[%emt 0:00:11]} 8. Re1 {[%emt 0:04:44]} Ne4 {[%emt 0:00:12]} 9. Nh4 {[%emt 0:06:21]} (9. Nb1 $11) 9... Nxc3 $15 {[%emt 0:00:06] E62: King's Indian: Fianchetto: 6...c6 and Panno Variation (6...Nc6) without ...a6.} 10. bxc3 {[%emt 0:00:04]} Bd7 {[%emt 0:00:04]} 11. Nf3 {[%emt 0:08:24] [#]} Na5 $146 {[%emt 0:06:25] Black has an edge.} ({Predecessor:} 11... Rb8 12. Rb1 Na5 13. Qd3 b6 14. e4 Bc8 15. Bg5 Ba6 16. Nd2 h6 17. Be3 c5 {1-0 (38) Cahkt-Savickas,A (2234) Playchess.com INT 2004}) 12. Qd3 {[%emt 0:03:07]} c5 {[%emt 0:00:20]} 13. Ba3 {[%emt 0:11:42]} b6 {[%emt 0:05:16]} 14. e4 {[%emt 0:07:29]} e5 {[%emt 0:10:18]} 15. Nd2 {[%emt 0:25:09]} Nc6 {[%emt 0:08:28]} ({Black should try} 15... exd4 $17 16. cxd4 Bxd4) 16. d5 {[%emt 0:03:55]} Ne7 {[%emt 0:00:30]} 17. Bc1 {[%emt 0:04:26]} f5 {[%emt 0:01:04]} 18. f3 {[%emt 0:03:36] White is on the road to losing.} (18. Nf3 $11 {remains equal.}) 18... Bh6 {[%emt 0:03:21]} (18... f4 $17 19. Nf1 h5) 19. Nf1 {[%emt 0:00:46]} (19. exf5 $15 gxf5 20. Nb3 Bxc1 21. Raxc1) 19... Bxc1 $17 {[%emt 0:00:05]} 20. Raxc1 {[%emt 0:01:08] [#]} f4 $1 {[%emt 0:00:08]} 21. g4 {[%emt 0:01:09]} g5 {[%emt 0:00:17]} 22. Nd2 {[%emt 0:03:51]} Kg7 {[%emt 0:02:39]} 23. Kf2 {[%emt 0:01:18]} h5 {[%emt 0:00:15]} 24. h3 {[%emt 0:00:04]} Rh8 {[%emt 0:00:15]} 25. Rh1 {[%emt 0:00:05]} Ng6 {[%emt 0:00:41]} 26. Ra1 {[%emt 0:01:22]} Ba4 {[%emt 0:01:33]} 27. Nb1 {[%emt 0:01:27]} (27. Nf1 $17) 27... hxg4 $19 {[%emt 0:02:37]} 28. fxg4 {[%emt 0:00:58]} f3 {[%emt 0:00:38]} 29. Bxf3 {[%emt 0:00:17]} Qf6 {[%emt 0:01:17] Threatens to win with ...Nf4.} 30. Nd2 {[%emt 0:00:23]} Raf8 {[%emt 0:00:02]} 31. Qe3 {[%emt 0:02:36]} Nf4 {[%emt 0:00:19] Chess con chili.} 32. Nf1 {[%emt 0:02:20]} (32. Kg3 {keeps fighting.}) 32... Nxh3+ {[%emt 0:00:59]} 33. Ke2 {[%emt 0:00:01]} Qf4 {[%emt 0:01:37] Inhibits Ng3.} 34. Qxf4 {[%emt 0:01:40]} gxf4 {[%emt 0:00:29]} ({Weaker is} 34... exf4 35. Nd2 $11) ({Worse is} 34... Nxf4+ 35. Ke3 $17) 35. Nd2 {[%emt 0:00:10]} Rh7 {[%emt 0:01:57]} 36. Bg2 {[%emt 0:01:50]} Rfh8 {[%emt 0:00:01]} 37. Bf3 {[%emt 0:00:47]} Rh4 {[%emt 0:00:56] aiming for ...Ng5.} 38. Rac1 {[%emt 0:00:43]} (38. Bg2 $142) 38... Bd7 {[%emt 0:00:14]} 39. Ra1 {[%emt 0:00:58]} Ng5 {[%emt 0:01:04]} 40. Rhf1 {[%emt 0:00:43]} Kf6 {[%emt 0:05:18]} 41. a4 {[%emt 0:00:00]} Bxg4 {[%emt 0:00:00]} 42. a5 {[%emt 0:00:00]} Rh2+ {[%emt 0:00:00]} 43. Kd3 {[%emt 0:00:00]} R8h3 {[%emt 0:00:00] Weighted Error Value: White=0.54/Black=0.19 (very precise)} 0-1

[Event "BSV-SCK IM 2022"]
[Site "Berlin"]
[Date "2022.04.13"]
[Round "7.3"]
[White "Muse, Drazen"]
[Black "Ermitsch, Magnus"]
[Result "1/2-1/2"]
[ECO "D04"]
[WhiteElo "2325"]
[BlackElo "2127"]
[Annotator "TA"]
[PlyCount "78"]
[EventDate "2022.04.08"]
[EventType "tourn"]
[EventCountry "GER"]
[SourceTitle "playchess.com"]
[Source "ChessBase"]
[SourceQuality "1"]
[TimeControl "5400+30"]

{[%evp 9,78,42,42,41,64,70,84,80,82,86,132,118,152,152,139,137,129,151,330,139,134,57,81,41,98,97,82,57,61,61,240,235,257,0,0,0,0,-182,-179,-210,-206,-392,-373,-378,-375,-389,-377,-374,-384,-352,-352,-684,-684,-794,-781,-679,-553,-489,-164,-158,-168,-631,-608,-590,0,-564,0,-549,-456,-428,0]} 1. d4 {[%emt 0:01:33]} Nf6 {[%emt 0:00:21]} 2. Nf3 {[%emt 0:00:07]} c5 {[%emt 0:00:14]} 3. e3 {[%emt 0:00:15]} d5 {[%emt 0:00:09]} 4. Nbd2 {[%emt 0:01:17]} Qc7 {[%emt 0:00:08]} 5. dxc5 {[%emt 0:00:17]} Qxc5 {[%emt 0:03:54]} 6. a3 {[%emt 0:05:11] D04: Colle System.} Bg4 {[%emt 0:15:01]} 7. b4 {[%emt 0:00:31]} Qc3 {[%emt 0:00:36]} 8. Rb1 {[%emt 0:00:08] [#] White is better.} (8. Bb5+ Bd7 9. Bxd7+ Nbxd7 $11) 8... Nbd7 $146 {[%emt 0:02:03]} ({Predecessor:} 8... Ne4 9. Bb2 Qxd2+ 10. Qxd2 Nxd2 11. Nxd2 Nc6 12. Bd3 e5 13. f3 Be6 14. Bb5 Bd6 {½-½ (73) Curran,A-Daenen,S Dos Hermanas 2003}) 9. Bb2 {[%emt 0:00:12]} Qc7 {[%emt 0:00:27]} (9... Qc6 $142) 10. c4 $16 {[%emt 0:00:33]} dxc4 {[%emt 0:02:10]} 11. Bxc4 {[%emt 0:03:30]} Rd8 {[%emt 0:01:08]} 12. Rc1 {[%emt 0:02:17][%cal Oc4f7]} Qb8 {[%emt 0:00:38]} 13. h3 $40 {[%emt 0:04:03][%mdl 128] White wants a kill.} Bh5 {[%emt 0:05:52]} (13... Bxf3 $16 {was worth a try.} 14. Nxf3 (14. Qxf3 e6 $16) 14... e6) 14. Qb3 {[%emt 0:09:43]} (14. g4 $1 $18 {[%cal Rg4h5]}) 14... e6 {[%emt 0:05:29]} 15. Bb5 {[%emt 0:09:10]} (15. g4 $16 Bg6 16. g5) 15... a6 {[%emt 0:09:09]} 16. Be2 {[%emt 0:02:50] 0x0.002037565f53dp-1022s more active pieces. The black rooks are badly placed.} Be7 {[%emt 0:11:43]} ({Black should play} 16... h6 $14) 17. g4 $1 {[%emt 0:02:33]} Bg6 {[%emt 0:00:17]} 18. h4 {[%emt 0:00:58] Threatens to win with h5.} h6 $1 {[%emt 0:12:36]} 19. Rg1 {[%emt 0:03:32]} Ne4 $2 {[%emt 0:08:03]} (19... Kf8 $14) 20. h5 $1 $18 {[%emt 0:00:33]} (20. Bxg7 $6 Rg8 21. Bxh6 Nxd2 22. Nxd2 Bxh4 $16) 20... Bh4 {[%emt 0:07:19][%cal Be7h4,Bh4f2,Bf2g1,Bg1e3][%mdl 32]} 21. hxg6 $2 {[%emt 0:05:17]} ({Resist} 21. Nxh4 Nxd2 22. Qc3 (22. Qd1 Qh2 $16) 22... Be4 $16) (21. Nxe4 $6 Bxe4 22. Nxh4 Qh2 $16) (21. Rg2 $18 Bh7 22. Bxg7 (22. Nxh4 Nxd2 23. Qc3 Nf8 $18)) 21... Bxf2+ $11 {[%emt 0:00:55]} 22. Kd1 {[%emt 0:00:59]} Nxd2 {[%emt 0:03:22]} 23. gxf7+ $2 {[%emt 0:00:34]} (23. Nxd2 $11 {and White stays safe.} Bxg1 24. Bxg7) 23... Kxf7 $19 {[%emt 0:00:43]} 24. Qc3 {[%emt 0:00:25]} Nf6 $1 {[%emt 0:01:03]} 25. Nxd2 {[%emt 0:04:41]} (25. Qc7+ {is the only way for White.} Qxc7 26. Rxc7+ Kg8 27. Nxd2 Bxg1 28. Kc2) 25... Bxg1 {[%emt 0:00:19]} 26. Kc2 {[%emt 0:00:22]} Qh2 {[%emt 0:02:06]} 27. Rf1 {[%emt 0:00:28][%cal Rf1f6] Black must now prevent Rxf6+.} Rc8 $1 {[%emt 0:04:18]} (27... Qxe2 28. Rxf6+ Kg8 29. Rg6 $11) 28. Bc4 {[%emt 0:00:28] [#]} Rxc4 $1 {[%emt 0:00:37]} 29. Qxc4 {[%emt 0:00:27] Bxf6 is the strong threat.} Bxe3 {[%emt 0:00:38]} 30. Bc3 $2 {[%emt 0:00:31]} (30. Qd3 Rc8+ 31. Bc3 Qxd2+ 32. Qxd2 Bxd2 33. Kxd2) 30... Rd8 {[%emt 0:01:06][%cal Bh8d8,Bd8d2,Bd2f2][%mdl 32]} 31. Qe4 {[%emt 0:00:37]} Rxd2+ {[%emt 0:02:59]} 32. Kb3 {[%emt 0:00:04] [#]} Rf2 $1 {[%emt 0:00:31]} 33. Qxb7+ {[%emt 0:00:05]} Kg8 $2 {[%emt 0:00:16]} (33... Kg6 34. Qxa6 e5 35. Rxf2 Bxf2) 34. Bxf6 {[%emt 0:01:23]} gxf6 {[%emt 0:00:46]} 35. Qa8+ $2 {[%emt 0:01:45]} (35. Qc8+ Kg7 36. Qd7+ Kf8 37. Qd8+ Kg7 38. Qe7+ Kg6 39. Qxe6 Rb2+ 40. Ka4 Qc2+ 41. Ka5 Qc7+ 42. Kxa6 Qa7+ 43. Kb5 Qb8+ 44. Ka6 Qa8+ 45. Kb5 Qb7+ 46. Ka5 Qc7+ 47. Ka6 Qa7+ 48. Kb5 Qb7+ 49. Ka5 Qc7+ 50. Ka6) 35... Kg7 {[%emt 0:00:12]} 36. Qb7+ {[%emt 0:00:04]} Kg8 {[%emt 0:00:07]} 37. Qa8+ $1 {[%emt 0:00:07]} Kg7 {[%emt 0:00:31]} 38. Qb7+ {[%emt 0:00:02]} Kg6 {[%emt 0:00:53] ( -> ...Rb2+)} 39. Qe4+ {[%emt 0:00:07] [#]} Kg7 $2 {[%emt 0:00:35] Weighted Error Value: White=0.54/Black=0.55} (39... Kf7 $1 $19 40. Qh7+ Ke8 41. Qh8+ Kf7 42. Qh7+ Kf8 43. Qh8+ Ke7 44. Qh7+ Ke8 45. Qh8+ Kd7 46. Qh7+ Kc6 47. Qe4+ Kc7 48. Qxe6 Qe5 49. Qc4+ Kb7 50. Qf7+ Kc6 51. Rxf2 Bxf2 52. Qc4+ Kb7 53. Qf7+ Kc6 54. Qc4+ Kb6) 1/2-1/2

[Event "BSV-SCK IM 2022"]
[Site "Berlin"]
[Date "2022.04.13"]
[Round "7.4"]
[White "Eugene, Floryan"]
[Black "Glek, Igor"]
[Result "0-1"]
[ECO "C02"]
[WhiteElo "2404"]
[BlackElo "2476"]
[Annotator "TA"]
[PlyCount "146"]
[EventDate "2022.04.08"]
[EventType "tourn"]
[EventCountry "GER"]
[SourceTitle "playchess.com"]
[Source "ChessBase"]
[SourceQuality "1"]
[TimeControl "5400+30"]

{[%evp 11,146,29,33,19,50,39,44,45,41,39,54,9,37,19,33,26,29,-16,-17,-183,-163,-204,-184,-192,-202,-206,-201,-196,-173,-178,-145,-164,-68,-175,-183,-180,-179,-185,-206,-188,-207,-246,-89,-85,-57,-145,-93,-91,-14,-238,-197,-214,-164,-211,-205,-233,-200,-369,-370,-480,-481,-556,-391,-420,-412,-391,-403,-424,-379,-415,-329,-318,-309,-398,-393,-470,-468,-472,-342,-341,-320,-343,-266,-312,-312,-312,-312,-312,-304,-302,-283,-326,-302,-376,-302,-302,-295,-287,-287,-304,-297,-377,-362,-371,-370,-353,-353,-332,-324,-309,-310,-304,-304,-284,-268,-277,-262,-228,-169,-174,-173,-167,-166,-185,-158,-158,-158,-178,-178,-183,-178,-405,-372,-831,-798,-708,-700]} 1. e4 {[%emt 0:00:02]} e6 {[%emt 0:19:08]} 2. d4 {[%emt 0:00:15]} d5 {[%emt 0:00:06]} 3. e5 {[%emt 0:00:05]} c5 {[%emt 0:00:29]} 4. c3 {[%emt 0:00:07]} Nc6 {[%emt 0:00:06]} 5. Nf3 {[%emt 0:00:08]} Nh6 {[%emt 0:00:38]} 6. Bd3 {[%emt 0:00:48]} Nf5 {[%emt 0:02:02][%cal Rc5d4]} 7. dxc5 {[%emt 0:00:29] C02: French: Advance Variation.} Bxc5 {[%emt 0:01:16]} 8. O-O {[%emt 0:00:37]} O-O {[%emt 0:00:59] [#]} 9. Re1 $146 {[%emt 0:00:20] White is slightly better.} ({Predecessor:} 9. Nbd2 f6 10. Bxf5 exf5 11. exf6 Qxf6 12. Nb3 Bb6 13. Bf4 Be6 14. a4 a6 15. a5 {½-½ (44) Kulaots,K (2579)-Westerinen,H (2305) Fagernes 2018}) 9... h6 {[%emt 0:05:32]} 10. Nbd2 {[%emt 0:15:44]} Bb6 {[%emt 0:10:01]} 11. g4 {[%emt 0:23:17]} Nh4 {[%emt 0:01:02]} (11... Nfe7 $5 {[%cal Rf7f6]}) 12. g5 $1 {[%emt 0:02:08]} Nf5 {[%emt 0:18:07]} 13. Nf1 {[%emt 0:13:37]} h5 {[%emt 0:02:40]} 14. Bxf5 {[%emt 0:09:26]} exf5 {[%emt 0:01:01][%cal Be6f5,Bf5f4][%mdl 32]} 15. g6 $2 {[%emt 0:00:54]} (15. Be3 $11 {and White has nothing to worry.}) 15... f4 $1 $19 {[%emt 0:01:01]} (15... fxg6 16. Bg5 Qd7 17. N1d2 $11) 16. gxf7+ {[%emt 0:12:07]} Rxf7 {[%emt 0:02:08]} 17. h4 {[%emt 0:01:39]} Bg4 {[%emt 0:02:31]} 18. N1h2 {[%emt 0:00:02]} Qd7 {[%emt 0:03:15]} 19. e6 {[%emt 0:06:11]} Bxe6 {[%emt 0:00:06]} 20. Ng5 {[%emt 0:00:14]} Rf6 {[%emt 0:06:51]} ({Weaker is} 20... Bf5 21. Bxf4 (21. Nxf7 Qxf7 22. Bxf4 Rf8 $17) 21... Rf6 22. Bg3 $17) 21. Qxh5 {[%emt 0:03:06] Hoping for Qh7+.} Rh6 {[%emt 0:00:13] Inhibits Qh7+.} (21... Bf5 $1 $19 {And now ...Raf8 would win.} 22. b4 Rh6) 22. Qe2 {[%emt 0:00:31]} ({White must play} 22. Qf3 $15) 22... Bf5 $1 {[%emt 0:06:10]} 23. Bxf4 {[%emt 0:01:49]} Rxh4 {[%emt 0:00:27]} 24. Bg3 {[%emt 0:00:09]} Rh6 {[%emt 0:00:30]} 25. Rad1 {[%emt 0:00:13][%cal Od1d5]} Rf8 {[%emt 0:00:17]} 26. b4 {[%emt 0:03:25]} Bd8 $2 {[%emt 0:01:56] A strong pair of Bishops.} (26... Qd8 $1 $19 {[%cal Rd8g5] has better winning chances.} 27. Ngf3 Qf6 28. Rxd5 Qxc3) 27. Ngf3 $17 {[%emt 0:01:03]} Bf6 {[%emt 0:05:36]} (27... Be4 $2 28. Qxe4 $3 {[%mdl 512]} dxe4 29. Rxd7 $18) 28. Qd2 {[%emt 0:01:58]} (28. b5 $15) 28... Rd8 {[%emt 0:02:47]} (28... Ne7 $142 {aiming for ...Qc8.} 29. Re3 Qc8) 29. b5 {[%emt 0:01:17] [#]} Na5 {[%emt 0:02:23]} ({Better is} 29... Ne7 $1 $17 {Black wants to play ...Qc8.} 30. Qf4 Rh5) 30. Nd4 $2 {[%emt 0:00:28] Black converts the advantage convincingly.} (30. Ne5 $1 $11 {and White stays safe.} Qc8 31. Qf4) 30... Nc4 $19 {[%emt 0:01:52]} 31. Qf4 {[%emt 0:00:26]} Bh3 {[%emt 0:00:39]} 32. Re2 {[%emt 0:00:55]} (32. Qc7 {is a better defense.}) 32... Rf8 {[%emt 0:00:15]} 33. Rd3 {[%emt 0:02:46]} Rg6 {[%emt 0:00:33] Threatens to win with ...Bg5.} 34. Qc1 {[%emt 0:00:19]} (34. Kh1) 34... Nd6 {[%emt 0:00:56]} 35. Qd1 {[%emt 0:00:45]} Ne4 {[%emt 0:00:34]} 36. Qb3 {[%emt 0:00:05]} Nc5 {[%emt 0:01:17][%csl LRb3,LRd3]} 37. Qc2 {[%emt 0:00:03]} Nxd3 {[%emt 0:00:05] Really sharp!} 38. Qxd3 {[%emt 0:00:02]} Rh6 {[%emt 0:00:34]} 39. Bf4 {[%emt 0:01:51]} Rh5 {[%emt 0:01:59] Strongly threatening ...Bxd4.} 40. Qg6 {[%emt 0:00:34]} Qf7 {[%emt 0:00:09]} 41. Qxf7+ {[%emt 0:00:15]} Kxf7 {[%emt 0:00:10]} (41... Rxf7 $2 {is the wrong capture.} 42. Bg3) 42. Nf1 {[%emt 0:00:00]} Rc8 {[%emt 0:00:00]} 43. b6 {[%emt 0:00:00]} axb6 {[%emt 0:00:00]} 44. Nb5 {[%emt 0:00:00]} Bxf1 {[%emt 0:00:00]} 45. Kxf1 {[%emt 0:00:00]} Kg8 {[%emt 0:00:00]} 46. Be3 {[%emt 0:00:00]} Rh1+ {[%emt 0:00:00]} 47. Kg2 {[%emt 0:00:00]} Rb1 {[%emt 0:00:00]} 48. a4 {[%emt 0:00:00]} Ra1 {[%emt 0:00:00]} 49. Rd2 {[%emt 0:00:00]} Rxa4 {[%emt 0:00:00]} 50. Rxd5 {[%emt 0:00:00]} Bxc3 {[%emt 0:00:00]} 51. Rd7 {[%emt 0:00:00]} Be5 {[%emt 0:00:00]} 52. Re7 {[%emt 0:00:00]} Bf6 {[%emt 0:00:00]} 53. Rxb7 {[%emt 0:00:00]} Rc6 {[%emt 0:00:00]} 54. Na7 {[%emt 0:00:00]} Re6 {[%emt 0:00:00]} 55. Nc8 {[%emt 0:00:00]} Rg4+ {[%emt 0:00:00]} 56. Kf3 {[%emt 0:00:00]} Rc4 {[%emt 0:00:00]} 57. Nxb6 {[%emt 0:03:55]} Rb4 {[%emt 0:00:00]} 58. Rb8+ {[%emt 0:01:18]} Kf7 {[%emt 0:00:00]} 59. Bc5 {[%emt 0:00:14]} Rb3+ {[%emt 0:01:27]} 60. Kg2 {[%emt 0:00:30]} Rc6 {[%emt 0:02:46]} 61. Rf8+ {[%emt 0:01:07]} Ke6 {[%emt 0:03:45]} 62. Re8+ {[%emt 0:00:04] [#]} Kf5 $1 {[%emt 0:00:04]} 63. Nd7 {[%emt 0:00:29]} Bb2 {[%emt 0:00:19]} 64. Be3 {[%emt 0:01:02]} Rd3 {[%emt 0:01:09]} 65. Rf8+ {[%emt 0:01:00]} Kg6 {[%emt 0:01:05]} 66. Rb8 {[%emt 0:00:12]} Bc3 {[%emt 0:00:36]} 67. Nf8+ {[%emt 0:00:43]} Kf7 {[%emt 0:00:18] White must now prevent ...Bd2.} 68. Nh7 {[%emt 0:00:15]} Rg6+ {[%emt 0:01:38]} 69. Ng5+ {[%emt 0:02:46]} Ke7 {[%emt 0:00:08]} 70. Rb7+ {[%emt 0:00:04]} Ke8 {[%emt 0:00:26][%cal Od3e3] ...Rxe3! is the strong threat.} 71. Rb6 $2 {[%emt 0:01:25]} (71. Bf4) 71... Bf6 {[%emt 0:00:10]} 72. Kf3 $2 {[%emt 0:00:42]} (72. Bc1) 72... Rxg5 {[%emt 0:00:14]} ({Worse is} 72... Bxg5 73. Rxg6 Bxe3 74. fxe3 $11) 73. Ke4 {[%emt 0:00:18]} Rgd5 {[%emt 0:00:10] Weighted Error Value: White=0.38/Black=0.22 (precise)} 0-1